fUST/lending_fUST_20250917
["ID","MTS","AMOUNT","RATE_DAILY","PERIOD"]
[385889685,1758101446843,-3609.97,0.00022465,3]
[385889686,1758101446853,-480.0,0.00022465,3]
[385889687,1758101446862,-480.0,0.00022465,3]
[385889688,1758101446871,-175.7,0.00022465,3]
[385889689,1758101446881,-480.0,0.00022465,3]
[385889690,1758101446890,-480.0,0.00022465,3]
[385889691,1758101446901,-681.62,0.00022465,3]
[385889692,1758101446910,-480.0,0.00022465,3]
[385889693,1758101446919,-480.0,0.00022465,3]
[385889694,1758101446928,-480.0,0.00022465,3]
[385889695,1758101446937,-480.0,0.00022465,3]
[385889696,1758101446946,-916.71,0.00022465,3]
[385889697,1758101446955,-480.0,0.00022465,3]
[385889698,1758101446964,-480.0,0.00022465,3]
[385889699,1758101446973,-309.90836645,0.00022465,3]
[385889700,1758101460182,334.65128848,0.000199,2]
[385889701,1758101460261,334.65128843,0.00021149,2]
[385889702,1758101525863,2075.74893576,0.00020558,2]
[385889703,1758101525885,375.51106424,0.00020558,2]
[385889705,1758101609061,2420.07,0.00020553,2]
[385889706,1758101662888,312.34120267,0.000199,2]
[385889707,1758101662973,312.34120253,0.00021149,2]
[385889708,1758101692782,2389.27,0.0002056,2]
[385889710,1758101776992,2358.86,0.00020417,2]
[385889711,1758101778607,449.435416,0.00020916,2]
[385889712,1758101852991,242.51845583,0.000199,2]
[385889713,1758101853093,242.51845569,0.00021149,2]
[385889714,1758101941539,897.14420304,0.00020419,2]
[385889715,1758101941566,1431.69579696,0.00020419,2]
[385889718,1758102026350,2299.2,0.00020568,2]
[385889719,1758102045927,226.35055876,0.000199,2]
[385889720,1758102045998,226.35055864,0.00021149,2]
[385889721,1758102110037,2269.93,0.00020554,2]
[385889722,1758102194962,2241.04,0.00020554,2]
[385889723,1758102238230,210.76052161,0.000199,2]
[385889724,1758102238330,210.76052139,0.00021149,2]
[385889725,1758102278380,883.92204264,0.00020424,2]
[385889726,1758102278405,1328.59795736,0.00020424,2]
[385889727,1758102364030,2184.36,0.00020426,2]
[385889731,1758102437022,246.20982008,0.000199,2]
[385889732,1758102437101,246.20981996,0.00021149,2]
[385889733,1758102537410,2156.56,0.00020564,2]
[385889734,1758102620900,2129.11,0.0002056,2]
[385889735,1758102630319,229.79745441,0.000199,2]
[385889736,1758102630407,229.79745416,0.00021149,2]
[385889756,1758102632764,-988.80134258,0.0002154,2]
[385889758,1758102632775,-2201.13980346,0.0002154,2]
[385889783,1758102638620,-1068.28885396,0.0002154,2]
[385889784,1758102638630,-349.96476783,0.00021813,2]
[385889785,1758102638672,-266.8,0.00021813,2]
[385889786,1758102638684,-583.23523217,0.00021813,2]
[385889787,1758102638694,-300.0,0.00021814,2]
[385889788,1758102638703,-300.0,0.00021814,2]
[385889789,1758102638712,-217.97907238,0.00021814,2]
[385889790,1758102638724,-982.02092762,0.00021814,2]
[385889791,1758102638733,-300.0,0.00021815,2]
[385889792,1758102638743,-300.0,0.00021815,2]
[385889793,1758102638753,-15002.75810457,0.00021817,2]
[385889794,1758102638764,-19201.42647805,0.00021817,2]
[385889795,1758102638773,-250.0,0.0002189,2]
[385889796,1758102638782,-260.5317625,0.0002189,2]
[385889797,1758102638792,-500.0,0.0002189,2]
[385889798,1758102638801,-500.0,0.0002189,2]
[385889799,1758102638811,-500.0,0.0002189,2]
[385889800,1758102638820,-500.0,0.0002189,2]
[385889801,1758102638829,-500.0,0.0002189,2]
[385889802,1758102638838,-530.80315945,0.0002189,2]
[385889803,1758102638847,-500.0,0.00021901,2]
[385889804,1758102638856,-500.0,0.00021901,2]
[385889805,1758102638866,-500.0,0.00021901,2]
[385889806,1758102638874,-500.0,0.00021901,2]
[385889807,1758102638883,-500.0,0.00021901,2]
[385889808,1758102638892,-500.0,0.00021901,2]
[385889809,1758102638902,-500.0,0.00021901,2]
[385889810,1758102638911,-500.0,0.00021901,2]
[385889811,1758102638921,-500.0,0.00021901,2]
[385889812,1758102638930,-485.15019666,0.00021901,2]
[385889813,1758102638939,-500.0,0.00021901,2]
[385889814,1758102638948,-500.0,0.00021901,2]
[385889815,1758102638957,-500.0,0.00021901,2]
[385889816,1758102638966,-500.0,0.00021901,2]
[385889817,1758102638977,-370.10788193,0.00021901,2]
[385889818,1758102638986,-518.10793932,0.00021901,2]
[385889819,1758102638995,-376.93470132,0.00021901,2]
[385889820,1758102639004,-500.0,0.00021901,2]
[385889821,1758102639013,-500.0,0.00021901,2]
[385889822,1758102639022,-352.21084993,0.00021901,2]
[385889823,1758102639031,-500.0,0.00021901,2]
[385889824,1758102639040,-500.0,0.00021901,2]
[385889825,1758102639049,-500.0,0.00021901,2]
[385889826,1758102639058,-500.0,0.00021901,2]
[385889827,1758102639067,-500.0,0.00021901,2]
[385889828,1758102639076,-500.0,0.00021901,2]
[385889829,1758102639085,-500.0,0.00021901,2]
[385889830,1758102639095,-500.0,0.00021901,2]
[385889831,1758102639104,-500.0,0.00021901,2]
[385889832,1758102639113,-500.0,0.00021901,2]
[385889833,1758102639121,-500.0,0.00021901,2]
[385889834,1758102639130,-396.63524591,0.00021901,2]
[385889835,1758102639139,-1170.3,0.00021907,3]
[385889836,1758102639148,-975.26,0.00021907,3]
[385889837,1758102639157,-487.63,0.00021907,3]
[385889838,1758102639166,-243.81,0.00021907,3]
[385889839,1758102639174,-259.67073898,0.00021907,3]
[385889843,1758102640760,-471.78926102,0.00021907,3]
[385889844,1758102640768,-405.65613938,0.00021916,2]
[385889845,1758102640777,-198.42646888,0.00021916,2]
[385889846,1758102640786,-792.91216964,0.00021916,2]
[385889847,1758102640796,-480.0,0.00021917,2]
[385889848,1758102640804,-480.0,0.00021917,2]
[385889849,1758102640817,-376.46450617,0.00021917,2]
[385889850,1758102640825,-1709.98549383,0.00021917,2]
[385889851,1758102640833,-480.0,0.00021917,2]
[385889852,1758102640839,-480.0,0.00021917,2]
[385889853,1758102640845,-480.0,0.00021917,2]
[385889854,1758102640853,-253.02044713,0.00021917,2]
[385889855,1758102640860,-480.0,0.00021917,2]
[385889856,1758102640866,-569.40208143,0.00021917,2]
[385889857,1758102640876,-156.75791857,0.00021917,2]
[385889858,1758102640886,-565.66372256,0.00021917,2]
[385889859,1758102640896,-480.0,0.00021917,2]
[385889860,1758102640906,-480.0,0.00021917,2]
[385889861,1758102640915,-450.09,0.00021917,2]
[385889862,1758102640926,-307.52,0.00021917,2]
[385889863,1758102640935,-480.0,0.00021917,2]
[385889864,1758102640944,-3289.05,0.00021917,2]
[385889865,1758102640953,-480.0,0.00021917,2]
[385889866,1758102640962,-596.42,0.00021917,2]
[385889867,1758102640971,-480.0,0.00021917,2]
[385889868,1758102640980,-1059.51,0.00021917,2]
[385889869,1758102640989,-1794.06,0.00021917,2]
[385889870,1758102640999,-480.0,0.00021917,2]
[385889871,1758102641008,-638.51,0.00021917,2]
[385889872,1758102641017,-480.0,0.00021917,2]
[385889873,1758102641026,-817.42,0.00021917,2]
[385889874,1758102641035,-839.39,0.00021917,2]
[385889875,1758102641045,-1025.74,0.00021917,2]
[385889876,1758102641054,-480.0,0.00021917,2]
[385889877,1758102641063,-480.0,0.00021917,2]
[385889878,1758102641072,-480.0,0.00021917,2]
[385889879,1758102641082,-480.0,0.00021917,2]
[385889880,1758102641091,-480.0,0.00021917,2]
[385889881,1758102641100,-480.0,0.00021917,2]
[385889882,1758102641110,-480.0,0.00021917,2]
[385889883,1758102641119,-623.26797818,0.00021917,2]
[385889884,1758102641130,-359.99275684,0.00021917,2]
[385889901,1758102644074,-3474.65369157,0.00021917,2]
[385889902,1758102644086,-2078.56557341,0.00021917,2]
[385889903,1758102644095,-555.64,0.00021917,2]
[385889904,1758102644104,-480.0,0.00021917,2]
[385889905,1758102644114,-480.0,0.00021917,2]
[385889906,1758102644123,-480.0,0.00021917,2]
[385889907,1758102644132,-802.12,0.00021917,2]
[385889908,1758102644142,-480.0,0.00021917,2]
[385889909,1758102644151,-228.91184891,0.00021917,2]
[385889910,1758102644167,-251.08815109,0.00021917,2]
[385889911,1758102644177,-480.0,0.00021917,2]
[385889912,1758102644186,-480.0,0.00021917,2]
[385889913,1758102644196,-480.0,0.00021917,2]
[385889914,1758102644205,-1488.71346396,0.00021917,2]
[385889920,1758102646789,-474.12653604,0.00021917,2]
[385889921,1758102646799,-480.0,0.00021917,2]
[385889922,1758102646808,-480.0,0.00021917,2]
[385889923,1758102646821,-480.0,0.00021917,2]
[385889924,1758102646831,-480.0,0.00021917,2]
[385889925,1758102646840,-1198.53,0.00021917,2]
[385889926,1758102646849,-555.26767223,0.00021917,2]
[385889927,1758102646858,-833.77,0.00021917,2]
[385889928,1758102646867,-591.24,0.00021917,2]
[385889929,1758102646877,-480.0,0.00021917,2]
[385889930,1758102646886,-480.0,0.00021917,2]
[385889931,1758102646895,-480.0,0.00021917,2]
[385889932,1758102646904,-480.0,0.00021917,2]
[385889933,1758102646913,-792.02,0.00021917,2]
[385889934,1758102646923,-151.0,0.00021918,2]
[385889935,1758102646932,-151.0,0.00021918,2]
[385889936,1758102646942,-151.0,0.00021918,2]
[385889937,1758102646951,-151.0,0.00021918,2]
[385889938,1758102646962,-151.0,0.00021918,2]
[385889939,1758102646971,-151.0,0.00021918,2]
[385889940,1758102646980,-233.34517135,0.00021963,2]
[385889941,1758102646989,-500.0,0.00021973,2]
[385889942,1758102646998,-500.0,0.00021973,2]
[385889943,1758102647007,-565.09993556,0.00021973,2]
[385889944,1758102647017,-500.0,0.00021973,2]
[385889945,1758102647026,-517.13096318,0.00021973,2]
[385889946,1758102647035,-503.60889632,0.00021973,2]
[385889947,1758102647044,-500.0,0.00021973,2]
[385889948,1758102647053,-500.0,0.00021973,2]
[385889949,1758102647063,-500.0,0.00021973,2]
[385889950,1758102647073,-500.0,0.00021973,2]
[385889951,1758102647082,-504.03045584,0.00021973,2]
[385889952,1758102647091,-500.0,0.00021973,2]
[385889953,1758102647101,-1000.0,0.00022,2]
[385889954,1758102647110,-547.06990037,0.00022081,2]
[385889955,1758102647119,-527.08471365,0.00022119,2]
[385889956,1758102647128,-190.26830547,0.0002219,2]
[385889957,1758102647137,-500.0,0.0002219,2]
[385889958,1758102647146,-234.11127008,0.0002219,2]
[385889959,1758102647156,-458.10480385,0.0002219,2]
[385889960,1758102647165,-500.0,0.0002219,2]
[385889961,1758102647174,-500.0,0.0002219,2]
[385889962,1758102647183,-500.0,0.0002219,2]
[385889963,1758102647191,-160.0,0.00022191,3]
[385889964,1758102647200,-480.0,0.00022191,3]
[385889965,1758102647209,-480.0,0.00022191,3]
[385889966,1758102647218,-2086.45,0.00022191,3]
[385889967,1758102647228,-480.0,0.00022191,3]
[385889968,1758102647237,-480.0,0.00022191,3]
[385889969,1758102647246,-480.0,0.00022191,3]
[385889970,1758102647256,-480.0,0.00022191,3]
[385889971,1758102647266,-726.16,0.00022191,3]
[385889972,1758102647275,-480.0,0.00022191,3]
[385889973,1758102647284,-480.0,0.00022191,3]
[385889974,1758102647293,-480.0,0.00022191,3]
[385889975,1758102647303,-3289.05,0.00022191,3]
[385889976,1758102647312,-450.55,0.00022191,3]
[385889977,1758102647321,-596.42,0.00022191,3]
[385889978,1758102647330,-480.0,0.00022191,3]
[385889979,1758102647339,-1059.51,0.00022191,3]
[385889980,1758102647349,-1794.06,0.00022191,3]
[385889981,1758102647358,-480.0,0.00022191,3]
[385889982,1758102647366,-638.51,0.00022191,3]
[385889983,1758102647375,-480.0,0.00022191,3]
[385889984,1758102647384,-817.42,0.00022191,3]
[385889985,1758102647393,-839.39,0.00022191,3]
[385889986,1758102647403,-1025.74,0.00022191,3]
[385889987,1758102647412,-480.0,0.00022191,3]
[385889988,1758102647421,-480.0,0.00022191,3]
[385889989,1758102647430,-569.37641475,0.00022191,3]
[385889990,1758102647439,-480.0,0.00022191,3]
[385889991,1758102647448,-480.0,0.00022191,3]
[385889992,1758102647457,-480.0,0.00022191,3]
[385889993,1758102647467,-480.0,0.00022191,3]
[385889994,1758102647476,-6536.48,0.00022191,3]
[385889995,1758102647485,-555.64,0.00022191,3]
[385889996,1758102647494,-480.0,0.00022191,3]
[385889997,1758102647503,-480.0,0.00022191,3]
[385889998,1758102647512,-480.0,0.00022191,3]
[385889999,1758102647521,-802.12,0.00022191,3]
[385890000,1758102647530,-480.0,0.00022191,3]
[385890001,1758102647539,-480.0,0.00022191,3]
[385890002,1758102647548,-480.0,0.00022191,3]
[385890003,1758102647558,-480.0,0.00022191,3]
[385890004,1758102647567,-480.0,0.00022191,3]
[385890005,1758102647576,-1962.84,0.00022191,3]
[385890006,1758102647586,-480.0,0.00022191,3]
[385890007,1758102647595,-480.0,0.00022191,3]
[385890008,1758102647604,-480.0,0.00022191,3]
[385890009,1758102647614,-480.0,0.00022191,3]
[385890010,1758102647623,-1198.53,0.00022191,3]
[385890011,1758102647632,-833.77,0.00022191,3]
[385890012,1758102647642,-591.24,0.00022191,3]
[385890013,1758102647651,-480.0,0.00022191,3]
[385890014,1758102647660,-515.8,0.00022191,3]
[385890015,1758102647669,-480.0,0.00022191,2]
[385890016,1758102647679,-480.0,0.00022191,3]
[385890017,1758102647688,-792.02,0.00022191,3]
[385890018,1758102647698,-151.0,0.00022217,3]
[385890019,1758102647707,-151.0,0.00022217,3]
[385890020,1758102647716,-151.0,0.00022217,3]
[385890021,1758102647725,-151.0,0.00022217,3]
[385890022,1758102647735,-5157.77121348,0.00022245,2]
[385890023,1758102647744,-300.0,0.00022354,20]
[385890024,1758102647753,-300.0,0.00022354,20]
[385890025,1758102647762,-300.0,0.00022354,20]
[385890026,1758102647771,-300.0,0.00022354,20]
[385890027,1758102647780,-300.0,0.00022354,20]
[385890028,1758102647789,-300.0,0.00022354,20]
[385890029,1758102647799,-300.0,0.00022354,20]
[385890030,1758102647809,-300.0,0.00022354,20]
[385890031,1758102647819,-300.0,0.00022354,20]
[385890032,1758102647828,-300.0,0.00022354,20]
[385890033,1758102647838,-300.0,0.00022354,20]
[385890034,1758102647847,-300.0,0.00022354,20]
[385890035,1758102647857,-300.0,0.00022354,20]
[385890036,1758102647866,-300.0,0.00022354,20]
[385890037,1758102647876,-300.0,0.00022354,20]
[385890038,1758102647885,-600.0,0.00022354,20]
[385890039,1758102647894,-229.79745416,0.00022398,2]
[385890040,1758102647904,-13075.6499667,0.00022401,2]
[385890041,1758102647913,-176.8607214,0.00022401,2]
[385890042,1758102647922,-186.93999873,0.00022402,2]
[385890043,1758102647931,-507.22541296,0.0002246,2]
[385890044,1758102647940,-480.0,0.00022465,3]
[385890045,1758102647949,-480.0,0.00022465,3]
[385890046,1758102647959,-2086.45,0.00022465,3]
[385890047,1758102647968,-480.0,0.00022465,3]
[385890048,1758102647978,-480.0,0.00022465,3]
[385890049,1758102647987,-480.0,0.00022465,3]
[385890050,1758102647996,-480.0,0.00022465,3]
[385890051,1758102648004,-726.16,0.00022465,3]
[385890052,1758102648013,-480.0,0.00022465,3]
[385890053,1758102648021,-480.0,0.00022465,3]
[385890054,1758102648029,-480.0,0.00022465,3]
[385890055,1758102648037,-3289.05,0.00022465,3]
[385890056,1758102648046,-596.42,0.00022465,3]
[385890057,1758102648056,-480.0,0.00022465,3]
[385890058,1758102648065,-1059.51,0.00022465,3]
[385890059,1758102648074,-1794.06,0.00022465,3]
[385890060,1758102648083,-480.0,0.00022465,3]
[385890061,1758102648092,-638.51,0.00022465,3]
[385890062,1758102648102,-480.0,0.00022465,3]
[385890063,1758102648112,-817.42,0.00022465,3]
[385890064,1758102648121,-839.39,0.00022465,3]
[385890065,1758102648131,-1025.74,0.00022465,3]
[385890066,1758102648140,-480.0,0.00022465,3]
[385890067,1758102648150,-480.0,0.00022465,3]
[385890068,1758102648160,-480.0,0.00022465,3]
[385890069,1758102648169,-480.0,0.00022465,3]
[385890070,1758102648180,-480.0,0.00022465,3]
[385890071,1758102648190,-480.0,0.00022465,3]
[385890072,1758102648198,-6536.48,0.00022465,3]
[385890073,1758102648207,-555.64,0.00022465,3]
[385890074,1758102648215,-480.0,0.00022465,3]
[385890075,1758102648223,-480.0,0.00022465,3]
[385890076,1758102648232,-480.0,0.00022465,3]
[385890077,1758102648241,-802.12,0.00022465,3]
[385890078,1758102648250,-480.0,0.00022465,3]
[385890079,1758102648260,-480.0,0.00022465,3]
[385890080,1758102648269,-480.0,0.00022465,3]
[385890081,1758102648280,-480.0,0.00022465,3]
[385890082,1758102648289,-480.0,0.00022465,3]
[385890083,1758102648300,-1962.84,0.00022465,3]
[385890084,1758102648309,-480.0,0.00022465,3]
[385890085,1758102648318,-480.0,0.00022465,3]
[385890086,1758102648328,-480.0,0.00022465,3]
[385890087,1758102648337,-480.0,0.00022465,3]
[385890088,1758102648346,-200.28923232,0.00022465,2]
[385890089,1758102648356,-1198.53,0.00022465,3]
[385890090,1758102648365,-500.0,0.00022465,2]
[385890091,1758102648375,-833.77,0.00022465,3]
[385890092,1758102648384,-151.0,0.00022465,2]
[385890093,1758102648394,-198.0,0.00022465,2]
[385890094,1758102648403,-198.0,0.00022465,2]
[385890095,1758102648412,-199.88288791,0.00022465,2]
[385890096,1758102648422,-151.0,0.00022465,2]
[385890097,1758102648431,-262.18076957,0.00022465,2]
[385890098,1758102648440,-591.24,0.00022465,3]
[385890099,1758102648449,-480.0,0.00022465,3]
[385890100,1758102648457,-204.0,0.00022465,2]
[385890101,1758102648467,-151.0,0.00022465,2]
[385890102,1758102648476,-480.0,0.00022465,2]
[385890103,1758102648486,-480.0,0.00022465,3]
[385890104,1758102648495,-792.02,0.00022465,3]
[385890105,1758102648505,-302.19580004,0.00022471,2]
[385890106,1758102648514,-1000.0,0.000225,2]
[385890107,1758102648522,-6387.34,0.00022519,2]
[385890108,1758102648531,-1000.0,0.00022521,2]
[385890109,1758102648541,-1000.0,0.00022521,2]
[385890110,1758102648550,-935.88433966,0.00022521,2]
[385890111,1758102648558,-1000.0,0.00022521,2]
[385890112,1758102648567,-1000.0,0.00022521,2]
[385890113,1758102648575,-1000.0,0.00022521,2]
[385890114,1758102648584,-1000.0,0.00022521,2]
[385890115,1758102648591,-547.06990037,0.00022654,2]
[385890116,1758102648600,-227.28712264,0.00022717,2]
[385890117,1758102648610,-500.0,0.00022739,2]
[385890118,1758102648619,-154.65788666,0.00022739,2]
[385890119,1758102648628,-480.0,0.00022739,3]
[385890120,1758102648638,-480.0,0.00022739,3]
[385890121,1758102648647,-2086.45,0.00022739,3]
[385890122,1758102648656,-172.52786025,0.00022739,3]
[385890123,1758102648665,-480.0,0.00022739,3]
[385890124,1758102648675,-480.0,0.00022739,3]
[385890125,1758102648684,-480.0,0.00022739,3]
[385890126,1758102648694,-726.16,0.00022739,3]
[385890127,1758102648703,-269.39,0.00022739,3]
[385890128,1758102648712,-315.61,0.00022739,3]
[385890129,1758102648722,-480.0,0.00022739,3]
[385890130,1758102648731,-3289.05,0.00022739,3]
[385890131,1758102648741,-596.42,0.00022739,3]
[385890132,1758102648750,-480.0,0.00022739,3]
[385890133,1758102648759,-1059.51,0.00022739,3]
[385890134,1758102648768,-1794.06,0.00022739,3]
[385890135,1758102648778,-480.0,0.00022739,3]
[385890136,1758102648787,-638.51,0.00022739,3]
[385890137,1758102648796,-480.0,0.00022739,3]
[385890138,1758102648806,-817.42,0.00022739,3]
[385890139,1758102648815,-839.39,0.00022739,3]
[385890140,1758102648830,-1025.74,0.00022739,3]
[385890141,1758102648839,-480.0,0.00022739,3]
[385890142,1758102648849,-480.0,0.00022739,3]
[385890143,1758102648858,-515.91,0.00022739,3]
[385890144,1758102648868,-233.05,0.00022739,3]
[385890145,1758102648878,-480.0,0.00022739,3]
[385890146,1758102648887,-480.0,0.00022739,3]
[385890147,1758102648898,-6536.48,0.00022739,3]
[385890148,1758102648907,-555.64,0.00022739,3]
[385890149,1758102648916,-480.0,0.00022739,3]
[385890150,1758102648926,-480.0,0.00022739,3]
[385890151,1758102648935,-529.75,0.00022739,3]
[385890152,1758102648945,-802.12,0.00022739,3]
[385890153,1758102648954,-480.0,0.00022739,3]
[385890154,1758102648964,-480.0,0.00022739,3]
[385890155,1758102648973,-480.0,0.00022739,3]
[385890156,1758102648983,-480.0,0.00022739,3]
[385890157,1758102649001,-480.0,0.00022739,3]
[385890158,1758102649010,-1962.84,0.00022739,3]
[385890159,1758102649019,-490.40772439,0.00022739,3]
[385890160,1758102649028,-480.0,0.00022739,3]
[385890161,1758102649037,-480.0,0.00022739,3]
[385890162,1758102649046,-581.6,0.00022739,3]
[385890163,1758102649055,-1198.53,0.00022739,3]
[385890164,1758102649065,-833.77,0.00022739,3]
[385890165,1758102649074,-591.24,0.00022739,3]
[385890166,1758102649084,-480.0,0.00022739,3]
[385890167,1758102649093,-480.0,0.00022739,3]
[385890168,1758102649102,-792.02,0.00022739,3]
[385890169,1758102649111,-295.0,0.00022913,2]
[385890170,1758102649120,-501.62793363,0.00022973,2]
[385890171,1758102649130,-501.0312842,0.00022973,2]
[385890172,1758102649139,-502.35718666,0.00022973,2]
[385890173,1758102649148,-500.0,0.00022973,2]
[385890174,1758102649157,-500.0,0.00022973,2]
[385890175,1758102649166,-500.0,0.00022973,2]
[385890176,1758102649175,-501.00043887,0.00022973,2]
[385890177,1758102649185,-500.85599219,0.00022973,2]
[385890178,1758102649194,-500.0,0.00022973,2]
[385890179,1758102649204,-500.0,0.00022973,2]
[385890180,1758102649213,-501.95371986,0.00022973,2]
[385890181,1758102649223,-502.74675269,0.00022973,2]
[385890182,1758102649232,-500.0,0.00022973,2]
[385890183,1758102649241,-500.0,0.00022973,2]
[385890184,1758102649250,-500.0,0.00022973,2]
[385890185,1758102649259,-500.0,0.00022973,2]
[385890186,1758102649269,-500.0,0.00022973,2]
[385890187,1758102649278,-319.74811095,0.0002299,2]
[385890188,1758102649287,-54017.11909636,0.0002299,2]
[385890189,1758102649297,-160.0,0.00023,3]
[385890190,1758102649306,-160.0,0.00023,3]
[385890191,1758102649315,-600.18879206,0.00023,2]
[385890192,1758102649324,-847.79063332,0.00023,3]
[385890193,1758102649333,-150.0,0.00023,2]
[385890194,1758102649342,-1000.0,0.00023,2]
[385890195,1758102649352,-217.90857035,0.00023,3]
[385890196,1758102649361,-500.0,0.00023013,2]
[385890197,1758102649370,-507.19,0.00023013,3]
[385890198,1758102649379,-480.0,0.00023013,3]
[385890199,1758102649388,-2086.45,0.00023013,3]
[385890200,1758102649398,-197.92,0.00023013,3]
[385890201,1758102649407,-215.91,0.00023013,3]
[385890202,1758102649416,-480.0,0.00023013,3]
[385890203,1758102649522,-726.16,0.00023013,3]
[385890204,1758102649532,-480.0,0.00023013,3]
[385890205,1758102649544,-3289.05,0.00023013,3]
[385890206,1758102649556,-596.42,0.00023013,3]
[385890207,1758102649566,-1059.51,0.00023013,3]
[385890208,1758102649575,-480.0,0.00023013,3]
[385890209,1758102649585,-1794.06,0.00023013,3]
[385890210,1758102649594,-480.0,0.00023013,3]
[385890211,1758102649603,-638.51,0.00023013,3]
[385890212,1758102649613,-480.0,0.00023013,3]
[385890213,1758102649622,-817.42,0.00023013,3]
[385890214,1758102649631,-839.39,0.00023013,3]
[385890215,1758102649641,-1025.74,0.00023013,3]
[385890216,1758102649650,-480.0,0.00023013,3]
[385890217,1758102649659,-480.0,0.00023013,3]
[385890218,1758102649668,-184.43,0.00023013,3]
[385890219,1758102649678,-480.0,0.00023013,3]
[385890220,1758102649687,-6536.48,0.00023013,3]
[385890221,1758102649699,-555.64,0.00023013,3]
[385890222,1758102649708,-629.12,0.00023013,3]
[385890223,1758102649719,-480.0,0.00023013,3]
[385890224,1758102649729,-574.14,0.00023013,3]
[385890225,1758102649738,-802.12,0.00023013,3]
[385890226,1758102649747,-480.0,0.00023013,3]
[385890227,1758102649756,-480.0,0.00023013,3]
[385890228,1758102649765,-480.0,0.00023013,3]
[385890229,1758102649775,-480.0,0.00023013,3]
[385890230,1758102649784,-1962.84,0.00023013,3]
[385890231,1758102649794,-480.0,0.00023013,3]
[385890232,1758102649803,-480.0,0.00023013,3]
[385890233,1758102649813,-1198.53,0.00023013,3]
[385890234,1758102649822,-833.77,0.00023013,3]
[385890235,1758102649831,-591.24,0.00023013,3]
[385890236,1758102649840,-480.0,0.00023013,3]
[385890237,1758102649849,-480.0,0.00023013,3]
[385890238,1758102649858,-792.02,0.00023013,3]
[385890239,1758102649868,-518.55296476,0.00023068,2]
[385890240,1758102649877,-1500.0,0.00023068,2]
[385890241,1758102649886,-1500.0,0.00023068,2]
[385890242,1758102649896,-501.55394876,0.00023068,2]
[385890243,1758102649905,-1500.0,0.00023068,2]
[385890244,1758102649914,-1500.0,0.00023068,2]
[385890245,1758102649924,-1064.78,0.000231,7]
[385890246,1758102649933,-160.0,0.00023141,2]
[385890247,1758102649942,-217.90857035,0.00023141,2]
[385890248,1758102649952,-160.0,0.00023141,2]
[385890249,1758102649961,-160.0,0.00023142,2]
[385890250,1758102649971,-344.0,0.00023158,2]
[385890251,1758102649981,-500.0,0.00023162,2]
[385890252,1758102649990,-503.54310911,0.00023162,2]
[385890253,1758102650000,-502.98516596,0.00023162,2]
[385890254,1758102650010,-500.0,0.00023162,2]
[385890255,1758102650020,-500.0,0.00023162,2]
[385890256,1758102650029,-547.06990037,0.00023227,2]
[385890257,1758102650038,-2340.6,0.00023277,3]
[385890258,1758102650047,-1950.52,0.00023277,3]
[385890259,1758102650057,-975.26,0.00023277,3]